Cogmind - Beta 15 @@@ ROGUE MODE // 2025.07.11 @ 20:46:29 Player: saltine Result: Destroyed by T2-5OE(R) with Subdweller Laser Performance ------------- Evolutions (0) 0 Regions Visited (2) 400 Robots Destroyed (14) 70 Value Destroyed (466) 466 Prototype IDs (11) 220 Alien Tech Used (0) 0 Bonus (0) 0 TOTAL SCORE: 1156 Bonus ------- None Cogmind --------- Core Integrity 0/250 Matter 290/300 Energy 46/200 System Corruption 0% Temperature Cool (29) Movement Treading (160) Location -10/Subcaves Parts ------- > --- POWER (1) -------- Subdweller Power Source > --- PROPULSION (2) --- Light Treads Spiked Treads > --- UTILITY (2) ------ Small Storage Unit Seismic Detector > --- WEAPON (2) ------- Subdweller Laser Subdweller Beam Cannon > --- INVENTORY (8) ---- Subdweller Monowheel Gun Armor Scrap Shield Barrage Gun Subdweller Shrapnel Launcher Multitool Peak State ------------ > --- POWER ------------ Subdweller Power Source > --- PROPULSION ------- Light Treads Spiked Treads > --- UTILITY ---------- Small Storage Unit Seismic Detector > --- WEAPON ----------- Subdweller Laser Subdweller Beam Cannon > --- INVENTORY -------- Subdweller Monowheel Gun Armor Scrap Shield Barrage Gun Subdweller Shrapnel Launcher Multitool [Rating: 13] Favorites ----------- Power Ion Engine Engine Ion Engine Propulsion Light Treads Treads Light Treads Utility Small Storage Unit Device Seismic Detector Storage Small Storage Unit Protection Light Armor Plating Weapon Assault Rifle Energy Gun Subdweller Laser Energy Cannon Subdweller Beam Cannon Ballistic Gun Assault Rifle Special Weapon Mining Laser Build | -11 -10 -10 ------- Run | Yrd Mat Sub Slots Evolved . | . . . Power . | . . . Propulsion . | . . . Utility . | . . . Weapon . | . . . Parts Attached 16 | 7 . 9 Power 2 | 1 . 1 Engine 2 | 1 . 1 Core . | . . . Reactor . | . . . Propulsion 3 | 2 . 1 Treads 3 | 2 . 1 Leg . | . . . Wheel . | . . . Hover . | . . . Flight . | . . . Utility 4 | 2 . 2 Device 1 | 1 . . Storage 1 | 1 . . Processor . | . . . Hackware . | . . . Protection 2 | . . 2 Artifact . | . . . Weapon 7 | 2 . 5 Energy Gun 2 | . . 2 Energy Cannon 1 | . . 1 Ballistic Gun 3 | 2 . 1 Ballistic Cannon . | . . . Launcher . | . . . Special Weapon 1 | . . 1 Impact Weapon . | . . . Slashing Weapon . | . . . Piercing Weapon . | . . . Special Melee Weapon . | . . . Unidentified Prototypes . | . . . Parts Lost 1 | . . 1 Power 1 | . . 1 Propulsion . | . . . Utility . | . . . Weapon . | . . . Highest Loss Streak 1 | . . 1 To Critical Strikes . | . . . Average Backups 7 | 3 5 7 Power . | . 1 . Propulsion 2 | 1 2 2 Utility 1 | . . 1 Weapon 1 | . 2 1 Tool/Special . | . . . Unused Backups 10 | . . 10 Power 1 | . . 1 Propulsion 3 | . . 3 Utility 2 | . . 2 Weapon 3 | . . 3 Tool/Special 1 | . . 1 Average Slot Usage (%) 99 | . 100 99 Engine 13 | . 14 13 Treads 28 | . 28 28 Device 12 | . 14 12 Storage 14 | . 14 14 Protection 1 | . . 1 Energy Gun 6 | . . 6 Energy Cannon 2 | . . 2 Ballistic Gun 16 | . 28 16 Special Weapon 2 | . . 2 Peak Build Rating 13 | 7 7 13 Average Rating 9 | 5 7 9 On Entrance 4 | . 7 7 Naked Turns . | . . . Heaviest Build 23 | 15 15 23 Greatest Support 40 | 40 40 40 Greatest Overweight (x) . | . . . Average Overweight (x) . | . . . Largest Inventory Capacity 8 | 8 8 8 Average Capacity 7 | 7 8 8 Most Carried 8 | 5 5 8 Average Carried 7 | 3 5 7 Final Capacity 8 | 8 8 8 Final Carried 7 | 5 5 7 Class Distribution -------------------- 100% | Mutant Dominant Class ---------------- Mutant | -10/Materials Mutant | -10/Subcaves Resources | -11 -10 -10 ----------- Run | Yrd Mat Sub Matter Collected 661 | 294 . 367 Remotely . | . . . Salvage Created 485 | 52 . 433 Parts 42 | 7 . 35 Haulers Intercepted . | . . . Recyclers Shooed . | . . . Parts Field Recycled . | . . . Retrieved Matter . | . . . Parts Self-Destructed 13 | . . 13 Prevented . | . . . Kills | -11 -10 -10 ------- Run | Yrd Mat Sub Combat Hostiles Destroyed 11 | . . 11 Guns 10 | . . 10 Classes Destroyed 4 | 1 . 3 Tunneler 3 | 3 . . Sentry 1 | . . 1 Artisan 1 | . . 1 Subdweller 10 | . . 10 Best Kill Streak 3 | 3 . 2 Combat Bots Only 2 | . . 2 Max Kills in Single Turn 2 | 1 . 2 Gunslinging 1 | . . 1 Exploded . | . . . Melee . | . . . Uniques/NPCs Destroyed . | . . . Combat | -11 -10 -10 -------- Run | Yrd Mat Sub Hostile Shots Fired 60 | . . 60 Missed 13 | . . 13 Hits 47 | . . 47 Projectile 47 | . . 47 Damage Taken 949 | . . 949 Core 264 | . . 264 Absorbed by Shields . | . . . Core Remaining (%) 100 | 100 . . Volleys Fired 71 | 4 . 67 Largest 2 | 2 . 2 Hottest 140 | 40 . 140 Shots Fired 120 | 8 . 112 Gun 102 | 8 . 94 Cannon 8 | . . 8 Launcher . | . . . Special 10 | . . 10 Kinetic 71 | 8 . 63 Thermal 46 | . . 46 Explosive . | . . . Electromagnetic 3 | . . 3 Robot Hit Streak 17 | 2 . 17 Robot Miss Streak 4 | 1 . 4 Penetration Max . | . . . Secondary Targets 3 | . . 3 Max Gunslinging Chain 1 | . . 1 Shots Hit Robots 75 | 5 . 70 Core Hits 23 | 3 . 20 Critical Kills 2 | . . 2 Critical Parts Destroyed 1 | . . 1 Critical Strikes 4 | . . 4 Meltdown 1 | . . 1 Destroy 3 | . . 3 Melee Attacks . | . . . Impact . | . . . Slashing . | . . . Piercing . | . . . Sneak Attacks . | . . . Combat Hostiles . | . . . Follow-up Attacks . | . . . Damage Inflicted 1299 | 69 . 1230 Guns 1138 | 69 . 1069 Cannons 161 | . . 161 Explosions . | . . . Melee . | . . . Ramming . | . . . Kinetic 843 | 69 . 774 Thermal 431 | . . 431 Explosive . | . . . Electromagnetic 25 | . . 25 Impact . | . . . Slashing . | . . . Piercing . | . . . Highest Corruption . | . . . Average Corruption . | . . . Corruption Purged . | . . . Corruption Blocked . | . . . Overload Shots . | . . . Overflow Damage . | . . . Projectiles . | . . . Explosions . | . . . Melee . | . . . Knockbacks . | . . . Impact . | . . . Kinetic . | . . . Secondary . | . . . Self-Inflicted Damage . | . . . Shots . | . . . Rammed . | . . . Targets Rammed . | . . . Kicked . | . . . Crushed . | . . . Highest Temperature 33 | . . 33 Average Temperature 10 | . . 10 Received Heat Transfer 96 | . . 96 Siege Activations . | . . . Martial Activations . | . . . Shielding Activations . | . . . Robots Disrupted . | . . . Combat Hostiles . | . . . Robots Corrupted . | . . . Combat Hostiles . | . . . Parts Fried . | . . . Impact Corruptions . | . . . Robots Melted 1 | . . 1 Combat Hostiles 1 | . . 1 Parts Melted 2 | . . 2 Heat Transferred 547 | . . 547 Parts Sabotaged . | . . . Parts Stolen . | . . . Parts Stripped . | . . . Power Chain Reactions . | . . . Alert | -11 -10 -10 ------- Run | Yrd Mat Sub Maximum Alert Level . | . . . Low Security (%) 100 | 100 100 . Level 1 . | . . . Level 2 . | . . . Level 3 . | . . . Level 4 . | . . . Level 5 . | . . . High Security . | . . . Max Security . | . . . Peak Influence 10 | 10 . . Initial . | . . . Average . | 1 . . Influence Increases 35 | 15 . 20 Destroy 0b10 Robot/C 20 | . . 20 Destroy 0b10 Robot/NC 15 | 15 . . Influence Decreases 25 | 15 . 10 Time Decay 25 | 15 . 10 Squads Dispatched . | . . . Investigation . | . . . Extermination . | . . . Reinforcement . | . . . Assault . | . . . Garrison . | . . . Intercept . | . . . Searches Triggered . | . . . Construction Impeded . | . . . Haulers Reinforced . | . . . Active Scanning Responses . | . . . Cargo Convoy Interrupts . | . . . Stealth | -11 -10 -10 --------- Run | Yrd Mat Sub Distress Signals . | . . . Communications Jammed . | . . . Distress Signals . | . . . Times Spotted 12 | . . 12 Peak Tracking Total 2 | . . 2 Tactical Retreats . | . . . Traps | -11 -10 -10 ------- Run | Yrd Mat Sub Traps Triggered . | . . . Indirectly . | . . . Trap Hack Attempts . | . . . Triggered . | . . . Disarmed . | . . . Reprogrammed . | . . . Reused . | . . . Traps Extracted . | . . . Installed . | . . . Triggered . | . . . Machines | -11 -10 -10 ---------- Run | Yrd Mat Sub Machines Disabled 1 | . . 1 Max in Single Turn 1 | . . 1 Machines Repaired . | . . . Machines Dismantled . | . . . Machines Sabotaged . | . . . Overloaded Fab Kills . | . . . Hacking | -11 -10 -10 --------- Run | Yrd Mat Sub Machines Accessed 2 | . . 2 Terminals . | . . . Fabricators . | . . . Repair Stations . | . . . Recycling Units . | . . . Scanalyzers . | . . . Garrison Access . | . . . Total Hacks 6 | . . 6 Successful 6 | . . 6 Failed . | . . . Catastrophic . | . . . Database Lockouts . | . . . Manual . | . . . Terminals . | . . . Fabricators . | . . . Repair Stations . | . . . Recycling Units . | . . . Scanalyzers . | . . . Garrison Access . | . . . Terminal Hacks 6 | . . 6 Record 5 | . . 5 Proto ID Catalog 1 | . . 1 Fabricator Hacks . | . . . Repair Station Hacks . | . . . Recycling Unit Hacks . | . . . Scanalyzer . | . . . Garrison Access Hacks . | . . . Unauthorized Hacks . | . . . Terminals . | . . . Fabricators . | . . . Repair Stations . | . . . Recycling Units . | . . . Scanalyzers . | . . . Garrison Access . | . . . Data Cores Recovered . | . . . Used . | . . . Hacking Detections . | . . . Full Trace Events . | . . . Feedback Events . | . . . Feedback Blocked . | . . . Robot Schematics Acquired . | . . . Robots Built . | . . . Authchips . | . . . Time . | . . . Total Robot Build Rating . | . . . Part Schematics Acquired . | . . . Parts Built . | . . . Authchips . | . . . Time . | . . . Total Part Build Rating . | . . . Parts Repaired . | . . . Time . | . . . Parts Recycled . | . . . Recycled Matter . | . . . Retrieved Matter . | . . . Retrieved Components . | . . . Parts Scanalyzed . | . . . Part Schematics Acquired . | . . . Parts Damaged . | . . . Bothacking | -11 -10 -10 ------------ Run | Yrd Mat Sub Used RIF Installer . | . . . Robots Hacked . | . . . Non-combat . | . . . Combat . | . . . Robot Hacks Applied . | . . . Relay Couplers Released . | . . . Fabnet Peak Effective % . | . . . Robots Rewired . | . . . Allies Hacked . | . . . Hacks Repelled . | . . . Allies | -11 -10 -10 -------- Run | Yrd Mat Sub Total Allies . | . . . Largest Group . | . . . Highest-Rated Group . | . . . Highest-Rated Ally . | . . . Total Orders . | . . . Ally Attacks . | . . . Total Damage . | . . . Kills . | . . . Allies Corrupted . | . . . Allies Melted . | . . . Intel | -11 -10 -10 ------- Run | Yrd Mat Sub Active Infowar (turns) 2111 | 44 126 1941 Seismic 2111 | 44 126 1941 Robot Analysis Total . | . . . Derelict Logs Recovered 1 | . . 1 Drone Launches . | . . . Drone Recoveries . | . . . Exploration | -11 -10 -10 ------------- Run | Yrd Mat Sub Turns Passed 2480 | 120 126 2234 Spaces Moved 1297 | 60 18 1219 Core 2 | 2 . . Treads 1295 | 58 18 1219 Legs . | . . . Wheels . | . . . Hover . | . . . Flight . | . . . Fastest Speed 50 | 50 160 160 Average Speed 159 | 156 160 160 Slowest Speed 160 | 160 160 160 Overloaded Moves . | . . . Propulsion Burnouts . | . . . Robots Hopped . | . . . Potential Cave-ins . | . . . Cave-ins Triggered . | . . . Exploration Rate (%) 25 | 4 5 67 Regions Visited 2 Branch Regions 1 Pre-discovered Areas 1 | . . 1 Known Exits Taken . | . . . Unknown Exits Taken 2 | 1 1 . Scrap Searched 4 | . . 4 Spaces Dug . | . . . Terrain Destroyed 2 | . . 2 Melee . | . . . Projectile 2 | . . 2 AOE . | . . . Terrain Rammed . | . . . Walls Destroyed . | . . . Machines Disabled . | . . . Actions | -11 -10 -10 --------- Run | Yrd Mat Sub Total 1557 | 75 115 1367 Wait 131 | . 98 33 Move 1295 | 59 17 1219 Hop . | . . . Pick Up 18 | 5 . 13 Fast Attach 8 | 7 . 1 Attach 2 | . . 2 Detach . | . . . Swap 19 | . . 19 Drop 13 | . . 13 Fire 71 | 4 . 67 Melee . | . . . Ram . | . . . Kick . | . . . Crush . | . . . Escape Stasis . | . . . Rewire . | . . . Trap . | . . . Miscellaneous . | . . . Route ------- -11/Scrapyard -10/Materials -10/Subcaves (discovered 2 exits: *Mat x2) History --------- Turn | Location | Event 25 | -11/Scrapyard | Discovered new exit (range 15) 121 | -11/Scrapyard | Entered Materials 223 | -10/Materials | Discovered new exit (range 9) 247 | -10/Materials | Entered Subcaves 248 | -10/Subcaves | Approached by a straggling Scientist 267 | -10/Subcaves | Identified exit to Materials 312 | -10/Subcaves | Build established: Mutant 505 | -10/Subcaves | Learned location of Zion (-6) 505 | -10/Subcaves | Met a Zionite searching for "candidates" 765 | -10/Subcaves | Ambushed by angry Subdweller bent on revenge 878 | -10/Subcaves | Core integrity fell below 50% 926 | -10/Subcaves | Shifting Twisted Machinery released Flamer 1315 | -10/Subcaves | A swath of the cavern ceiling suddenly collapsed 1491 | -10/Subcaves | Discovered exit to Materials (range 5) 2061 | -10/Subcaves | Visited 4L-MR0's lab 2080 | -10/Subcaves | Found Gun Armor 2190 | -10/Subcaves | Visited Clippyterm 2195 | -10/Subcaves | Learned 40 Factory zone layouts 2195 | -10/Subcaves | Learned Factory garrison access intel 2257 | -10/Subcaves | A swath of the cavern ceiling suddenly collapsed 2412 | -10/Subcaves | Disturbed a concealed Subdweller 2461 | -10/Subcaves | Core integrity fell below 20% 2481 | -10/Subcaves | Destroyed by T2-5OE(R) with Subdweller Laser Last Messages --------------- It looks like you're curious about the current leader of 0bPrime. Optimus is well liked, but certainly not being up front with the UFD as a whole. CW-B2B(c): "I think it's somewhere east of here" A swath of the cavern ceiling suddenly collapses. CW-B2B(c): "I think it's somewhere southeast of here" 02361_ Dropped Seismic Detector. 02363_ Dropped Lgt. Treads. 02364_ Acquired Seismic Detector. 02370_ Y-45 Defender destroyed. 02375_ Lgt. Treads fries itself beyond repair. 02379_ Beam Rifle fries itself beyond repair. 02379_ Acquired 10 matter. 02380_ Heat Sink fries itself beyond repair. CW-B2B(c): "I think it's somewhere east of here" 02454_ 43-JYX(R) suffers critical hit (Destroy). T2-5OE(R) emerges from concealment. 02469_ 43-JYX(R) suffers critical hit (Meltdown). 02469_ Sub. Machine Gun melted. 02478_ Sub. Beam Cannon shoots sparks and powers down. Map ----- +----------------------------------------------------+ | ????????### # #?###?##??????????????????????? | | ????????# = ##?????????????????????????????? | | ?????#### # # ###??????????????????????????????? | | ?????# ######????????????????????????????????? | | ?????# #???????????????????????????????????? | | ####### ##???????????????????????????????????? | | ## ###????????????????????????????????????? | | %###????????????????????????????????????? | | ##???????????????????????????????????? | | ##??????????????????????????????????? | | ##?????????????????????????????????? | | ##????????????????????????????????? | | ## ## #????????????????????????????????? | | ?# ## ## ##???????????????????????????????? | | ?##?# #???????????????????????????????? | | ???## #????###????##??????????????????? | | ??## ###### ###?# #??????????????????? | | ??# ## #? #??????????????????? | | ?# ## ## ##?????????????????? | | # #?## #?????????????????? | | # #??# ## #??????????????????? | | ######??# # #????????????????????? | | ???## #### ## ##???????????????????? | | ???# ## #???????????????????? | | ???## =R* #???????????????????? | | ?##"#" # @ ##??????????????????? | | ?# ### ; ##?????????????????? | | "& ##" ###; #?????????????????? | | #???## ##?## ## #?????????????????? | | ?????## #??## #####?????????????????? | | ??????# #??### #?????????????????????? | | ??????## #???########?????????????????????? | | ???????##########????????????????????????????????? | | ?????????????????????????????????????????????????? | | ?????????????????????????????????????????????????? | | ?????????????????????????????????????????????????? | | ?????????????????????????????????????????????????? | | ?????????????????????????????????????????????????? | | ?????????????????????????????????????????????????? | | ?????????????????????????????????????????????????? | | ?????????????????????????????????????????????????? | | ?????????????????????????????????????????????????? | | ?????????????????????????????????????????????????? | | ?????????????????????????????????????????????????? | | ?????????????????????????????????????????????????? | | ?????????????????????????????????????????????????? | | ?????????????????????????????????????????????????? | | | | | | | +----------------------------------------------------+ Best States ------------- Heat Dissipation 25 Energy Generation 15 Energy Capacity 250 Matter Stores 300 Matter Capacity 300 Sight Range 16 Terrain Scan Density 10 Armor Coverage 150 Evasion (%) 40 Recoil Reduction 2 Item Schematics ----------------- None Robot Schematics ------------------ None Fabricated ------------ Nothing Repaired ---------- Nothing Alien Tech Used ----------------- None Achievements -------------- None Challenges ------------ None Game ------ Seed ImpactLegRouter Manual? 0 Play Time 00:13:57 Cumulative 520.1 hours Start 2025.07.11 @ 20:35:30 End 2025.07.11 @ 20:46:29 Sessions 1 Manual Loads 0 Difficulty Rogue Special Mode None Game No. 229 Rogue 229 Adventurer 0 Explorer 0 Win Type - Total 24 Types 7/4/7/2/1/0/1/1/0/1 Lore% 89 Gallery% 86 Achievement% 80 Wizard Run 0 Options --------- Layout 0 ASCII 0 Keyboard 1 Movement Arrows Keybinds 0 Fullscreen 2 Font 18/SmallcapsGlow Map View 76x50 Zoom Use 0% Tactical HUD 1 Map Filters NONE Filters NONE Steam 1 RUN: 6cb186ac-d62f-495c-99ce-0c03e7fb0d1a